bitfinex/quotes_BTCUSD_20240815
["timestamp","ask_amount","ask_price","bid_price","bid_amount"]
[1723695130621,1.419723,58458.0,58457.0,0.01]
[1723695130622,2.257931,58458.0,58457.0,0.01]
[1723695130834,0.1426,58452.0,58445.0,0.11977]
[1723695131036,0.239522,58450.0,58442.0,0.239552]
[1723695131247,1.2785,58451.0,58444.0,0.239545]
[1723695131398,1.2785,58451.0,58445.0,0.29518995]
[1723695131610,1.398258,58451.0,58447.0,0.119765]
[1723695131818,1.2785,58451.0,58447.0,0.119765]
[1723695132392,1.401259,58451.0,58447.0,0.119765]
[1723695132617,1.398259,58451.0,58445.0,0.29518995]
[1723695132857,1.398259,58451.0,58446.0,0.19047905]
[1723695132982,1.399259,58451.0,58446.0,0.19047905]
[1723695133181,1.399259,58451.0,58444.0,0.000823]
[1723695133182,0.598852,58445.0,58444.0,0.000823]
[1723695133408,0.980993,58445.0,58444.0,0.000823]
[1723695133613,0.741452,58445.0,58444.0,0.000823]
[1723695135544,3.19104754,58445.0,58444.0,0.000823]
[1723695135690,0.359391,58432.0,58426.0,0.009053]
[1723695135898,1.546497,58432.0,58426.0,0.009053]
[1723695136097,1.786091,58432.0,58426.0,0.009053]
[1723695137570,1.792091,58432.0,58426.0,0.009053]
[1723695138140,2.031685,58432.0,58426.0,0.009053]
[1723695138342,2.037685,58432.0,58426.0,0.009053]
[1723695138548,2.277279,58432.0,58426.0,0.009053]
[1723695139263,2.265279,58432.0,58426.0,0.009053]
[1723695139465,2.271279,58432.0,58426.0,0.009053]
[1723695139716,2.276279,58432.0,58426.0,0.009053]
[1723695142125,2.44783354,58432.0,58426.0,0.009053]
[1723695142326,2.276279,58432.0,58426.0,0.009053]
[1723695146479,2.27926019,58432.0,58426.0,0.009053]
[1723695146683,2.69040873,58432.0,58426.0,0.009053]
[1723695146892,2.68742754,58432.0,58426.0,0.009053]
[1723695147058,2.68722156,58432.0,58426.0,0.009053]
[1723695148416,2.69766381,58432.0,58426.0,0.009053]
[1723695149782,2.27607302,58432.0,58426.0,0.009053]
[1723695152072,2.44762756,58432.0,58426.0,0.009053]
[1723695153030,2.27107302,58432.0,58426.0,0.009053]
[1723695153432,2.28007302,58432.0,58426.0,0.009053]
[1723695154648,2.27407302,58432.0,58426.0,0.009053]
[1723695155269,2.28307302,58432.0,58426.0,0.009053]
[1723695162360,2.13487302,58432.0,58426.0,0.009053]
[1723695162561,2.13487302,58432.0,58431.0,0.202822]
[1723695162562,1.2965,58432.0,58431.0,0.202822]
[1723695162902,1.2965,58432.0,58431.0,0.1094552]
[1723695163030,0.018,58432.0,58431.0,0.1094552]
[1723695163835,0.018,58432.0,58431.0,0.000823]
[1723695163836,0.137797,58432.0,58431.0,0.000823]
[1723695164043,0.377391,58432.0,58431.0,0.000823]
[1723695166907,0.616985,58432.0,58431.0,0.000823]
[1723695167313,0.94005998,58432.0,58431.0,0.000823]
[1723695167543,1.41280852,58432.0,58431.0,0.000823]
[1723695167739,2.25280852,58432.0,58431.0,0.000823]
[1723695167894,2.25280852,58432.0,58431.0,1e-08]
[1723695167895,3.87336789,58432.0,58431.0,1e-08]
[1723695168112,0.838652,58427.0,58426.0,0.009053]
[1723695168339,1.70078693,58427.0,58426.0,0.009053]
[1723695168533,2.06770929,58427.0,58426.0,0.009053]
[1723695168735,1.94040193,58427.0,58426.0,0.009053]
[1723695168937,2.83195647,58427.0,58426.0,0.009053]
[1723695169339,2.93895647,58427.0,58426.0,0.009053]
[1723695169743,3.07800218,58427.0,58426.0,0.009053]
[1723695169922,2.92495647,58427.0,58426.0,0.009053]
[1723695170346,1.220439,58423.0,58422.0,0.009053]
[1723695170547,2.92502847,58423.0,58422.0,0.009053]
[1723695170932,1.82817186,58423.0,58422.0,0.009053]
[1723695171155,1.80270657,58423.0,58422.0,0.009053]
[1723695171364,1.80273886,58423.0,58422.0,0.009053]
[1723695171623,1.71484293,58423.0,58422.0,0.009053]
[1723695172204,1.92794913,58423.0,58422.0,0.009053]
[1723695172428,1.97217474,58423.0,58422.0,0.009053]
[1723695172626,1.98617474,58423.0,58422.0,0.009053]
[1723695172849,2.22580574,58423.0,58422.0,0.009053]
[1723695173256,1.98617474,58423.0,58422.0,0.009053]
[1723695173455,2.22580574,58423.0,58422.0,0.009053]
[1723695174289,2.97580574,58423.0,58422.0,0.009053]
[1723695174594,3.12885145,58423.0,58422.0,0.009053]
[1723695174873,3.12888248,58423.0,58422.0,0.009053]
[1723695176363,3.38417613,58423.0,58422.0,0.009053]
[1723695176520,3.41737654,58423.0,58422.0,0.009053]
[1723695177597,3.4862401,58423.0,58422.0,0.009053]
[1723695178011,0.838824,58415.0,58413.0,0.009053]
[1723695178175,2.96651285,58415.0,58413.0,0.009053]
[1723695178586,2.83898162,58415.0,58413.0,0.009053]
[1723695179013,3.88216433,58415.0,58413.0,0.009053]
[1723695179462,3.89016433,58415.0,58413.0,0.009053]
[1723695179639,4.06171887,58415.0,58413.0,0.009053]
[1723695180437,4.06971887,58415.0,58413.0,0.009053]
[1723695181044,4.29338287,58415.0,58413.0,0.009053]
[1723695181240,4.29338287,58415.0,58411.0,0.0002]
[1723695181241,1.227842,58412.0,58411.0,0.0002]
[1723695181445,2.88640314,58412.0,58411.0,0.0002]
[1723695181648,3.35881412,58412.0,58411.0,0.0002]
[1723695182181,4.86793712,58412.0,58411.0,0.0002]
[1723695182406,4.8838601,58412.0,58411.0,0.0002]
[1723695183080,0.599302,58401.0,58400.0,1e-08]
[1723695183268,0.839023,58401.0,58400.0,1e-08]
[1723695183941,1.11041418,58401.0,58400.0,1e-08]
[1723695184168,1.23590135,58401.0,58400.0,1e-08]
[1723695184383,1.11057754,58401.0,58400.0,1e-08]
[1723695184552,1.12257754,58401.0,58400.0,1e-08]
[1723695184755,1.17351333,58401.0,58400.0,1e-08]
[1723695184935,1.13557754,58401.0,58400.0,1e-08]
[1723695186868,2.23347,58401.0,58400.0,1e-08]
[1723695187781,1.9967311,58401.0,58400.0,0.06530001]
[1723695188350,1.893749,58401.0,58400.0,0.14140001]
[1723695188550,1.414307,58401.0,58400.0,0.14140001]
[1723695188756,1.654028,58401.0,58400.0,0.14140001]
[1723695188959,1.893749,58401.0,58400.0,0.14140001]
[1723695191826,2.13347,58401.0,58400.0,0.14140001]
[1723695192014,1.893749,58401.0,58400.0,0.14140001]
[1723695192490,1.893749,58401.0,58400.0,0.08170001]
[1723695192716,1.893749,58401.0,58400.0,1e-08]
[1723695192919,2.13347,58401.0,58400.0,1e-08]
[1723695194714,1.893749,58401.0,58400.0,1e-08]
[1723695195760,2.13247,58401.0,58400.0,1e-08]
[1723695196238,1.892749,58401.0,58400.0,1e-08]
[1723695197991,1.892749,58401.0,58400.0,0.01463001]
[1723695198217,1.892749,58401.0,58400.0,1e-08]
[1723695198661,1.892749,58401.0,58400.0,0.07750001]
[1723695201351,1.892749,58401.0,58400.0,1e-08]
[1723695211986,1.413307,58401.0,58400.0,1e-08]
[1723695212108,1.413307,58401.0,58400.0,0.13650001]
[1723695212318,1.46415006,58401.0,58400.0,0.13650001]
[1723695212735,1.45315006,58401.0,58400.0,0.13650001]
[1723695212952,0.013,58401.0,58400.0,1.40963235]
[1723695213205,0.009,58401.0,58400.0,1.40763235]
[1723695213401,0.009,58401.0,58400.0,1.16790635]
[1723695214725,0.018,58401.0,58400.0,1.40763235]
[1723695214917,1.269447,58410.0,58409.0,0.1365]
[1723695215118,1.269447,58410.0,58409.0,0.1861043]
[1723695216219,1.276447,58410.0,58409.0,0.3059483]
[1723695216649,0.007,58410.0,58409.0,0.3059483]
[1723695218064,0.007,58410.0,58409.0,0.5456373]
[1723695218065,0.014,58410.0,58409.0,0.5456373]
[1723695219559,0.014,58410.0,58409.0,0.71719184]
[1723695220263,0.014,58410.0,58409.0,0.95688084]
[1723695221082,0.014,58410.0,58409.0,0.71719184]
[1723695222111,0.014,58410.0,58409.0,0.95688084]
[1723695226967,0.014,58410.0,58409.0,1.19656984]
[1723695228218,0.0009053,58415.0,58414.0,0.59917]
[1723695228425,0.0009053,58415.0,58414.0,0.73447354]
[1723695228627,0.0009053,58415.0,58414.0,0.203417]
[1723695229218,0.0009053,58415.0,58414.0,0.1435]
[1723695229424,0.0019053,58415.0,58414.0,0.1465]
[1723695229907,0.7388653,58415.0,58414.0,0.003]
[1723695230078,0.7388653,58415.0,58400.0,0.07800001]
[1723695230079,0.239705,58405.0,58400.0,0.07800001]
[1723695230233,0.23971,58404.0,58400.0,0.24955455]
[1723695230435,0.11986,58402.0,58401.0,0.03150546]
[1723695230839,0.119856,58404.0,58401.0,0.03150546]
[1723695231037,0.119853,58405.0,58401.0,0.15136546]
[1723695231515,0.119853,58405.0,58401.0,0.03150546]
[1723695231721,1.269447,58406.0,58401.0,0.03150546]
[1723695231926,1.389298,58406.0,58402.0,0.1784873]
[1723695232623,0.23969,58409.0,58401.0,0.001]
[1723695232624,0.839009,58402.0,58401.0,0.001]
[1723695232834,0.839009,58402.0,58401.0,0.003]
[1723695232835,0.914209,58402.0,58401.0,0.003]
[1723695233088,0.914209,58402.0,58401.0,0.002]
[1723695233297,0.599302,58401.0,58400.0,1e-08]
[1723695233505,0.19636576,58401.0,58400.0,1e-08]
[1723695233729,0.17086669,58401.0,58400.0,1e-08]
[1723695233937,0.11986,58401.0,58400.0,1e-08]
[1723695234674,0.359581,58401.0,58400.0,1e-08]
[1723695235297,0.599302,58401.0,58400.0,1e-08]
[1723695235721,0.89002969,58401.0,58400.0,1e-08]
[1723695235928,0.839023,58401.0,58400.0,1e-08]
[1723695236143,0.99822876,58401.0,58400.0,1e-08]
[1723695236557,1.07252876,58401.0,58400.0,1e-08]
[1723695236769,2.70383028,58401.0,58400.0,1e-08]
[1723695237003,2.68983028,58401.0,58400.0,1e-08]
[1723695237215,0.921811,58395.0,58394.0,0.009053]
[1723695237425,1.38875741,58395.0,58394.0,0.009053]
[1723695238468,1.2867882,58395.0,58394.0,0.009053]
[1723695238700,0.921811,58395.0,58394.0,0.009053]
[1723695238907,1.28801333,58395.0,58394.0,0.004053]
[1723695239038,0.927811,58395.0,58394.0,0.004053]
[1723695239242,1.00427748,58395.0,58394.0,0.004053]
[1723695239449,0.927811,58395.0,58394.0,0.004053]
[1723695239836,1.01026712,58395.0,58394.0,0.004053]
[1723695241650,0.933811,58395.0,58394.0,0.004053]
[1723695241858,3.13846688,58395.0,58394.0,1e-06]
[1723695242122,3.33972293,58395.0,58394.0,1e-06]
[1723695242329,0.839153,58392.0,58391.0,0.0002]
[1723695242541,2.73210615,58392.0,58391.0,0.0002]
[1723695242753,2.90366069,58392.0,58391.0,0.0002]
[1723695242991,3.0565213,58392.0,58391.0,0.0002]
[1723695243372,2.90366069,58392.0,58391.0,0.0002]
[1723695244059,2.91766069,58392.0,58391.0,0.0002]
[1723695245959,2.9230448,58392.0,58391.0,0.0002]
[1723695246160,2.9090448,58392.0,58391.0,0.0002]
[1723695246591,2.9230448,58392.0,58391.0,0.0002]
[1723695247264,0.119891,58386.0,58374.0,0.0641]
[1723695247470,0.909891,58386.0,58374.0,0.0641]
[1723695247679,0.83924,58386.0,58374.0,0.0641]
[1723695247903,0.83924,58386.0,58381.0,0.075]
[1723695248105,0.83924,58386.0,58385.0,1e-08]
[1723695248690,0.85324,58386.0,58385.0,1e-08]
[1723695249426,1.00354,58386.0,58385.0,1e-08]
[1723695249626,0.98954,58386.0,58385.0,1e-08]
[1723695250028,1.00154,58386.0,58385.0,1e-08]
[1723695250471,0.98954,58386.0,58385.0,1e-08]
[1723695250891,1.00354,58386.0,58385.0,1e-08]
[1723695251509,0.99054,58386.0,58385.0,1e-08]
[1723695251924,1.00454,58386.0,58385.0,1e-08]
[1723695252351,2.273987,58386.0,58385.0,1e-08]
[1723695252781,2.122687,58386.0,58385.0,1e-08]
[1723695253025,1.964323,58386.0,58385.0,1e-08]
[1723695253233,1.950323,58386.0,58385.0,1e-08]
[1723695253444,1.964323,58386.0,58385.0,1e-08]
[1723695253648,1.950323,58386.0,58385.0,1e-08]
[1723695253856,1.964323,58386.0,58385.0,1e-08]
[1723695254311,1.107023,58386.0,58385.0,1e-08]
[1723695254556,0.85324,58386.0,58385.0,1e-08]
[1723695254976,0.86724,58386.0,58385.0,1e-08]
[1723695258184,2.136687,58386.0,58385.0,1e-08]
[1723695259363,2.21297754,58386.0,58385.0,1e-08]
[1723695260216,1.42297754,58386.0,58385.0,1e-08]
[1723695260432,2.21297754,58386.0,58385.0,1e-08]
[1723695261028,2.041423,58386.0,58385.0,1e-08]
[1723695261341,1.979523,58386.0,58385.0,1e-08]
[1723695262085,2.55726054,58386.0,58385.0,1e-08]
[1723695262510,1.462728,58385.0,58384.0,0.00819001]
[1723695262860,2.58005981,58385.0,58384.0,0.00819001]
[1723695262986,2.51182735,58385.0,58384.0,1e-08]
[1723695263419,2.34027281,58385.0,58384.0,1e-08]
[1723695263663,2.38327281,58385.0,58384.0,1e-08]
[1723695264198,1.59327281,58385.0,58384.0,1e-08]
[1723695264392,2.38327281,58385.0,58384.0,1e-08]
[1723695264602,2.39727281,58385.0,58384.0,1e-08]
[1723695264810,2.38327281,58385.0,58384.0,1e-08]
[1723695265018,2.31757281,58385.0,58384.0,1e-08]
[1723695265220,2.31857281,58385.0,58384.0,1e-08]
[1723695265436,2.30457281,58385.0,58384.0,1e-08]
[1723695265635,2.31857281,58385.0,58384.0,1e-08]
[1723695265837,2.33257281,58385.0,58384.0,1e-08]
[1723695266054,2.31857281,58385.0,58384.0,1e-08]
[1723695266480,2.33257281,58385.0,58384.0,1e-08]
[1723695266632,2.31857281,58385.0,58384.0,1e-08]
[1723695267239,3.58801981,58385.0,58384.0,1e-08]
[1723695268072,3.60201981,58385.0,58384.0,1e-08]
[1723695268220,2.80811435,58385.0,58384.0,1e-08]
[1723695268684,2.87699039,58385.0,58384.0,1e-08]
[1723695269389,2.84899039,58385.0,58384.0,1e-08]
[1723695269597,2.69143585,58385.0,58384.0,1e-08]
[1723695269792,2.70543585,58385.0,58384.0,1e-08]
[1723695270988,2.69143585,58385.0,58384.0,1e-08]
[1723695271204,2.74220509,58385.0,58384.0,1e-08]
[1723695271403,2.70543585,58385.0,58384.0,1e-08]
[1723695271612,2.73480261,58385.0,58384.0,1e-08]
[1723695271791,2.72080261,58385.0,58384.0,1e-08]
[1723695272402,0.839412,58374.0,58373.0,0.09003]
[1723695272840,0.83920591,58374.0,58373.0,0.09003]
[1723695273258,0.83920591,58374.0,58373.0,0.00823]
[1723695273405,1.86903791,58374.0,58373.0,0.00823]
[1723695273607,3.31003945,58374.0,58373.0,0.00823]
[1723695273819,2.35848491,58374.0,58373.0,0.00823]
[1723695274023,2.11865291,58374.0,58373.0,0.00823]
[1723695274219,1.998943,58374.0,58373.0,0.00823]
[1723695274446,2.118859,58374.0,58373.0,0.00823]
[1723695274784,2.128859,58374.0,58373.0,0.00823]
[1723695274985,2.118859,58374.0,58373.0,0.00823]
[1723695275210,2.121859,58374.0,58373.0,0.00823]
[1723695275507,2.132859,58374.0,58373.0,0.00823]
[1723695275902,2.121859,58374.0,58373.0,0.00823]
[1723695276305,2.133859,58374.0,58373.0,0.00823]
[1723695276900,2.133859,58374.0,58373.0,0.017776]
[1723695277259,2.133859,58374.0,58373.0,0.00823]
[1723695278562,2.47909828,58374.0,58373.0,0.00823]
[1723695279503,2.58074212,58374.0,58373.0,0.00823]
[1723695280532,2.47909828,58374.0,58373.0,0.00823]
[1723695281364,2.60615308,58374.0,58373.0,0.00823]
[1723695281570,3.63598508,58374.0,58373.0,0.00823]
[1723695282390,3.50893028,58374.0,58373.0,0.00823]
[1723695282798,2.71893028,58374.0,58373.0,0.00823]
[1723695283941,1.76076155,58374.0,58373.0,0.14523]
[1723695284150,1.49100041,58374.0,58373.0,0.160596]
[1723695284574,1.70529683,58374.0,58373.0,0.160596]
[1723695285003,0.384748,58374.0,58373.0,0.160596]
[1723695285208,0.43584983,58374.0,58373.0,0.160596]
[1723695287180,0.19601783,58374.0,58373.0,0.160596]
[1723695287400,0.144916,58374.0,58373.0,0.160596]
[1723695287599,0.025,58374.0,58373.0,0.160596]
[1723695287799,0.144916,58374.0,58373.0,0.160596]
[1723695288019,0.384748,58374.0,58373.0,0.160596]
[1723695289043,0.144916,58374.0,58373.0,0.160596]
[1723695289648,0.025,58374.0,58373.0,0.160596]
[1723695290032,0.43585551,58374.0,58373.0,0.160596]
[1723695290431,1.07625903,58374.0,58373.0,0.160596]
[1723695290779,0.83642703,58374.0,58373.0,0.160596]
[1723695290919,2.10587403,58374.0,58373.0,0.160596]
[1723695291969,1.74612603,58374.0,58373.0,0.160596]
[1723695292175,1.86604203,58374.0,58373.0,0.160596]
[1723695292379,1.51657003,58374.0,58373.0,0.160596]
[1723695292595,1.86574254,58374.0,58373.0,0.160596]
[1723695293296,1.74582654,58374.0,58373.0,0.160596]
[1723695294932,2.10557454,58374.0,58373.0,0.160596]
[1723695295140,1.86574254,58374.0,58373.0,0.160596]
[1723695295750,2.34540654,58374.0,58373.0,0.023596]
[1723695295946,2.24319951,58374.0,58373.0,0.00823]
[1723695296751,2.24282699,58374.0,58373.0,0.00823]
[1723695296958,2.61040312,58374.0,58373.0,0.00823]
[1723695297960,2.48265899,58374.0,58373.0,0.00823]
[1723695298161,3.19265899,58374.0,58373.0,0.00823]
[1723695298439,2.48265899,58374.0,58373.0,0.00823]
[1723695298729,3.27265899,58374.0,58373.0,0.00823]
[1723695300130,3.42595195,58374.0,58373.0,0.00823]
[1723695300631,3.70129734,58374.0,58373.0,1e-08]
[1723695300793,3.69783637,58374.0,58373.0,1e-08]
[1723695301368,3.76671984,58374.0,58373.0,1e-08]
[1723695302250,2.97671984,58374.0,58373.0,1e-08]
[1723695303500,2.97762624,58374.0,58373.0,1e-08]
[1723695303702,2.73779424,58374.0,58373.0,0.06560001]
[1723695303940,2.66891077,58374.0,58373.0,0.06560001]
[1723695304107,2.39237911,58374.0,58373.0,0.06560001]
[1723695304327,2.82023595,58374.0,58373.0,0.06560001]
[1723695305041,1.91297631,58374.0,58373.0,0.06560001]
[1723695305272,1.99947076,58374.0,58373.0,0.06560001]
[1723695305392,2.23930276,58374.0,58373.0,0.06560001]
[1723695305612,1.99947076,58374.0,58373.0,0.08107301]
[1723695305840,2.23930276,58374.0,58373.0,0.08107301]
[1723695306006,2.23930276,58374.0,58373.0,0.06560001]
[1723695306610,2.23930276,58374.0,58373.0,1e-08]
[1723695306813,1.99947076,58374.0,58373.0,0.08020001]
[1723695307746,2.23930276,58374.0,58373.0,0.08020001]
[1723695308403,2.0002978,58374.0,58373.0,0.08020001]
[1723695308571,2.0002978,58374.0,58373.0,0.09534301]
[1723695310239,1.7604658,58374.0,58373.0,0.15764301]
[1723695310444,1.6405498,58374.0,58373.0,0.15764301]
[1723695310649,1.88824205,58374.0,58373.0,0.15764301]
[1723695310980,2.12807405,58374.0,58373.0,0.15764301]
[1723695311337,1.6405498,58374.0,58373.0,0.15764301]
[1723695311499,2.12807405,58374.0,58373.0,0.15764301]
[1723695311882,1.7604658,58374.0,58373.0,0.15764301]
[1723695312312,1.6405498,58374.0,58373.0,0.15764301]
[1723695312746,1.7682965,58374.0,58373.0,0.15764301]
[1723695313545,1.8882125,58374.0,58373.0,0.15764301]
[1723695314631,0.4910188,58374.0,58373.0,0.15764301]
[1723695315878,0.6187655,58374.0,58373.0,0.15764301]
[1723695316081,0.62142375,58374.0,58373.0,0.15764301]
[1723695317000,0.62132344,58374.0,58373.0,0.15764301]
[1723695317258,0.37366662,58374.0,58373.0,0.15764301]
[1723695317457,0.0259064,58374.0,58373.0,0.92878755]
[1723695317662,0.0259064,58374.0,58373.0,1.17062355]
[1723695318033,0.0259064,58374.0,58373.0,1.34840847]
[1723695318253,0.0259064,58374.0,58373.0,1.17062355]
[1723695318447,0.0259064,58374.0,58373.0,1.34840381]
[1723695318652,0.0139064,58374.0,58373.0,1.34840381]
[1723695318830,0.0009064,58374.0,58373.0,1.34840381]
[1723695319035,0.0009064,58374.0,58373.0,1.38140381]
[1723695319231,0.0029064,58374.0,58373.0,1.20362355]
[1723695319441,0.0029064,58374.0,58373.0,1.19362355]
[1723695320670,0.0029064,58374.0,58373.0,1.20362355]
[1723695320866,0.0029064,58374.0,58373.0,1.19362355]
[1723695322261,0.0029064,58374.0,58373.0,1.19162355]
[1723695322925,0.0029064,58374.0,58373.0,1.19362355]
[1723695323334,0.0029064,58374.0,58373.0,1.17062355]
[1723695323912,0.0029064,58374.0,58373.0,0.92878755]
[1723695324155,0.0029064,58374.0,58373.0,1e-08]
[1723695324356,0.1228224,58374.0,58373.0,1e-08]
[1723695325055,0.1218224,58374.0,58373.0,1e-08]
[1723695325267,0.3616544,58374.0,58373.0,1e-08]
[1723695325470,0.6024864,58374.0,58373.0,1e-08]
[1723695325657,0.68114113,58374.0,58373.0,1e-08]
[1723695325946,0.6024864,58374.0,58373.0,1e-08]
[1723695326391,0.3646544,58374.0,58373.0,1e-08]
[1723695326806,1.6321014,58374.0,58373.0,1e-08]
[1723695327014,1.6341014,58374.0,58373.0,1e-08]
[1723695328476,1.32536224,58374.0,58373.0,0.43027255]
[1723695328692,1.2743534,58374.0,58373.0,0.49812761]
[1723695328896,1.2743534,58374.0,58373.0,0.73796361]
[1723695329348,1.2743534,58374.0,58373.0,0.37820961]
[1723695330309,1.3942694,58374.0,58373.0,0.06785507]
[1723695330513,1.2743534,58374.0,58373.0,1e-08]
[1723695332532,0.0049064,58374.0,58373.0,1e-08]
[1723695334380,0.1248224,58374.0,58373.0,1e-08]
[1723695335599,0.1758591,58374.0,58373.0,1e-08]
[1723695335751,0.0559431,58374.0,58373.0,1e-08]
[1723695335962,0.1758591,58374.0,58373.0,0.02671521]
[1723695337633,0.1758614,58374.0,58373.0,0.02671521]
[1723695338635,0.17586106,58374.0,58373.0,0.02671521]
[1723695340053,0.1248224,58374.0,58373.0,0.02671521]
[1723695340454,0.17586069,58374.0,58373.0,0.02671521]
[1723695341254,0.41569269,58374.0,58373.0,0.02671521]
[1723695341471,0.49829269,58374.0,58373.0,0.02671521]
[1723695341699,0.73812469,58374.0,58373.0,1e-08]
[1723695342121,0.0049064,58374.0,58373.0,0.31335455]
[1723695343706,0.2050224,58374.0,58373.0,1e-08]
[1723695343912,0.31996674,58374.0,58373.0,1e-08]
[1723695344248,0.55979874,58374.0,58373.0,1e-08]
[1723695344659,0.31996674,58374.0,58373.0,1e-08]
[1723695345235,0.31996674,58374.0,58373.0,0.01283541]
[1723695345444,0.31996674,58374.0,58373.0,1e-08]
[1723695345445,0.55979874,58374.0,58373.0,1e-08]
[1723695345644,0.82515291,58374.0,58373.0,1e-08]
[1723695347327,0.82515458,58374.0,58373.0,1e-08]
[1723695350384,2.0180334,58374.0,58373.0,1e-08]
[1723695354476,2.36599419,58374.0,58373.0,1e-08]
[1723695354675,1.98206219,58374.0,58373.0,1e-08]
[1723695355093,1.98206219,58374.0,58373.0,0.01026301]
[1723695355307,1.98206219,58374.0,58373.0,0.15626301]
[1723695355666,1.71068282,58374.0,58373.0,0.15626301]
[1723695356033,1.71068231,58374.0,58373.0,0.15626301]
[1723695356231,1.6341014,58374.0,58373.0,0.15626301]
[1723695356434,0.3646544,58374.0,58373.0,0.15626301]
[1723695356843,0.1248224,58374.0,58373.0,0.32781755]
[1723695357043,0.0049064,58374.0,58373.0,0.32781755]
[1723695357244,0.05596152,58374.0,58373.0,0.32781755]
[1723695357432,0.17587752,58374.0,58373.0,0.32781755]
[1723695358186,0.17587752,58374.0,58373.0,0.18181755]
[1723695359976,0.41570952,58374.0,58373.0,0.01026301]
[1723695360422,0.05596152,58374.0,58373.0,0.32781755]
[1723695360639,0.0049064,58374.0,58373.0,0.68957155]
[1723695360856,0.0049064,58374.0,58373.0,0.92940755]
[1723695361453,0.0029064,58374.0,58373.0,1.16924355]
[1723695361649,0.0029064,58374.0,58373.0,0.92940755]
[1723695361897,0.0049064,58374.0,58373.0,0.92940755]
[1723695362103,0.0029064,58374.0,58373.0,0.92940755]
[1723695362302,0.0009064,58374.0,58373.0,0.92940755]
[1723695362601,0.0039064,58374.0,58373.0,0.93040755]
[1723695362804,0.0019064,58374.0,58373.0,0.93040755]
[1723695363130,0.0029064,58374.0,58373.0,0.93140755]
[1723695364112,0.0029064,58374.0,58373.0,1.17124355]
[1723695364332,0.0029064,58374.0,58373.0,1.19424355]
[1723695366498,0.0029064,58374.0,58373.0,0.78340755]
[1723695366722,0.0029064,58374.0,58373.0,0.87760755]
[1723695367341,0.0029064,58374.0,58373.0,0.95840755]
[1723695367755,0.0029064,58374.0,58373.0,0.95640755]
[1723695368110,0.0029064,58374.0,58373.0,0.95840755]
[1723695369676,0.0029064,58374.0,58373.0,1.02270755]
[1723695369873,0.0029064,58374.0,58373.0,1.26254355]
[1723695370074,0.0029064,58374.0,58373.0,1.38554355]
[1723695370492,0.0029064,58374.0,58373.0,1.56331829]
[1723695370787,0.0029064,58374.0,58373.0,1.38554355]
[1723695370947,0.0029064,58374.0,58373.0,1.56331829]
[1723695371144,0.0029064,58374.0,58373.0,1.57331829]
[1723695371866,0.0029064,58374.0,58373.0,1.56331829]
[1723695372055,0.0029064,58374.0,58373.0,1.38554355]
[1723695372258,0.0029064,58374.0,58373.0,1.5633156]
[1723695372863,0.0029064,58374.0,58373.0,1.38554355]
[1723695377941,0.0029064,58374.0,58373.0,1.29134355]
[1723695378158,0.0029064,58374.0,58373.0,1.38554355]
[1723695382295,0.0029064,58374.0,58373.0,1.12270755]
[1723695387444,0.0029064,58374.0,58373.0,1.36254355]
[1723695398273,0.0029064,58374.0,58373.0,1.54033284]
[1723695398930,0.0029064,58374.0,58373.0,1.56333284]
[1723695400031,0.0029064,58374.0,58373.0,1.80316884]
[1723695400914,0.0019064,58374.0,58373.0,1.80214766]
[1723695401322,0.0029064,58374.0,58373.0,1.80314766]
[1723695403490,0.00270021,58374.0,58373.0,1.80314766]
[1723695404347,0.00270021,58374.0,58373.0,1.62537955]
[1723695404519,0.00270021,58374.0,58373.0,1.80314654]
[1723695404778,0.00270021,58374.0,58373.0,1.62537955]
[1723695405022,0.00270021,58374.0,58373.0,1.80314654]
[1723695406537,0.00270021,58374.0,58373.0,1.56331054]
[1723695406752,0.00270021,58374.0,58373.0,1.56131054]
[1723695409724,0.00270021,58374.0,58373.0,1.41821054]
[1723695409922,0.00270021,58374.0,58373.0,1.06117454]
[1723695410186,0.00270021,58374.0,58373.0,0.18381755]
[1723695410358,0.00270021,58374.0,58373.0,0.27801755]
[1723695410560,0.26711621,58374.0,58373.0,0.27801755]
[1723695410759,0.14720021,58374.0,58373.0,0.27801755]
[1723695411136,0.26511621,58374.0,58373.0,0.27601755]
[1723695411568,0.14720021,58374.0,58373.0,0.28601755]
[1723695411799,0.14620021,58374.0,58373.0,0.28101755]
[1723695412028,0.14620021,58374.0,58373.0,0.00500001]
[1723695412029,2.09185978,58374.0,58373.0,0.00500001]
[1723695412185,2.6901949,58374.0,58373.0,0.003]
[1723695412387,3.2882231,58374.0,58373.0,0.003]
[1723695412585,0.73809,58373.0,58372.0,0.00823]
[1723695412798,2.94721431,58373.0,58372.0,0.00823]
[1723695412995,2.39705031,58373.0,58372.0,0.00823]
[1723695413206,2.0547852,58373.0,58372.0,0.00823]
[1723695413604,2.3320632,58373.0,58372.0,0.00823]
[1723695414016,2.16050866,58373.0,58372.0,0.00823]
[1723695414221,1.73025223,58373.0,58372.0,0.00823]
[1723695414396,1.73025223,58373.0,58372.0,0.00923]
[1723695414599,1.89513812,58373.0,58372.0,0.00923]
[1723695415320,1.75425223,58373.0,58372.0,0.01023]
[1723695415723,1.75896744,58373.0,58372.0,0.01023]
[1723695415921,2.78857844,58373.0,58372.0,0.01023]
[1723695417790,2.6170239,58373.0,58372.0,0.01023]
[1723695418192,2.74423262,58373.0,58372.0,0.01023]
[1723695419216,2.6170239,58373.0,58372.0,0.01023]
[1723695420576,2.61999846,58373.0,58372.0,0.01023]
[1723695420985,1.90049046,58373.0,58372.0,0.01023]
[1723695421187,1.79467556,58373.0,58372.0,0.01023]
[1723695421411,2.03451156,58373.0,58372.0,0.01023]
[1723695422771,1.79467556,58373.0,58372.0,0.01023]
[1723695423231,2.03451156,58373.0,58372.0,0.01023]
[1723695423482,1.79467556,58373.0,58372.0,0.01023]
[1723695423609,1.29642156,58373.0,58372.0,0.369991]
[1723695423809,1.29642156,58373.0,58372.0,0.91374564]
[1723695423810,1.293447,58373.0,58372.0,0.91374564]
[1723695426116,1.269447,58373.0,58372.0,0.91174564]
[1723695426414,1.281447,58373.0,58372.0,0.91274564]
[1723695427178,1.281447,58373.0,58372.0,0.67290464]
[1723695427809,0.012,58373.0,58372.0,0.67290464]
[1723695428465,0.012,58373.0,58372.0,0.91274564]
[1723695429124,0.012,58373.0,58372.0,0.67290464]